bitfinex/quotes_ETHUSD_20241030
["timestamp","ask_amount","ask_price","bid_price","bid_amount"]
[1730302314382,3.72094,2687.5,2687.2,0.83]
[1730302314746,3.72009,2688.1,2687.2,0.83]
[1730302314947,7.44094,2687.9,2687.2,0.83]
[1730302315276,3.72051,2687.8,2687.2,0.83]
[1730302315572,3.72051,2687.8,2687.2,4.55125]
[1730302315573,3.72073,2687.7,2687.2,4.55125]
[1730302315774,3.72051,2687.8,2687.2,2.01422472]
[1730302315980,3.72086,2687.6,2687.2,0.83]
[1730302316182,3.72086,2687.6,2687.0,0.83]
[1730302316183,3.72108,2687.4,2687.0,0.83]
[1730302316382,3.72108,2687.4,2687.0,2.04212072]
[1730302316684,0.02,2688.8,2687.2,0.83]
[1730302316885,3.72087,2687.6,2687.2,3.83]
[1730302317049,3.72093,2687.5,2687.2,3.83]
[1730302317402,3.72087,2687.6,2687.3,1.11209672]
[1730302317707,3.72106,2687.4,2687.3,1.11209672]
[1730302317982,3.72106,2687.4,2687.0,8.70480072]
[1730302318141,3.72106,2687.4,2687.1,4.0]
[1730302318347,3.72093,2687.5,2687.1,4.0]
[1730302318547,3.72094,2687.5,2687.2,0.89832207]
[1730302318787,0.8057,2687.7,2687.2,4.61958207]
[1730302318788,3.72073,2687.7,2687.2,4.61958207]
[1730302318972,0.91431601,2688.2,2687.2,0.89832207]
[1730302319286,3.72051,2687.8,2687.3,3.72112]
[1730302319454,3.72065,2687.7,2687.4,0.83407221]
[1730302319655,3.72049,2687.9,2687.4,0.83407221]
[1730302319849,3.72009,2688.1,2687.4,4.55513221]
[1730302320052,3.72054,2687.8,2687.4,0.83407221]
[1730302320378,3.72038,2687.9,2687.4,4.55501221]
[1730302320545,3.72038,2687.9,2687.5,3.7209]
[1730302320745,3.72033,2688.0,2687.4,4.55501221]
[1730302321042,3.72044,2687.9,2687.5,0.45550122]
[1730302321244,3.72058,2687.8,2687.5,0.45550122]
[1730302321477,3.72016,2688.1,2687.5,1.26230122]
[1730302321668,0.91431601,2688.2,2687.5,1.26230122]
[1730302321669,0.13231601,2688.2,2687.5,1.26230122]
[1730302321867,3.85228601,2688.2,2687.8,3.72051]
[1730302322105,3.85228601,2688.2,2687.6,0.49062769]
[1730302322106,3.72032,2688.0,2687.6,0.49062769]
[1730302322303,3.72012,2688.1,2687.6,4.21134769]
[1730302322608,3.72079,2687.6,2687.2,0.7582]
[1730302322806,0.833,2687.9,2687.3,4.0]
[1730302322807,3.72106,2687.4,2687.3,4.0]
[1730302323005,3.72106,2687.4,2686.8,3.56955723]
[1730302323006,3.0,2688.4,2687.4,0.7582]
[1730302323213,0.833,2688.3,2687.4,0.7582]
[1730302323419,3.72093,2687.5,2687.1,0.7652]
[1730302323572,0.14231601,2688.2,2687.1,0.7652]
[1730302323573,3.72081,2687.6,2687.1,0.7652]
[1730302323890,3.72113,2687.4,2687.1,0.7652]
[1730302324094,3.72116,2687.4,2687.1,0.7652]
[1730302324270,0.14231601,2688.2,2687.1,4.48668]
[1730302324271,3.7209,2687.6,2687.1,4.48668]
[1730302324470,0.7747,2687.8,2687.1,0.7652]
[1730302324671,3.72134,2687.2,2686.8,0.7628]
[1730302324893,3.72122,2687.3,2686.8,4.4846]
[1730302325108,3.72099,2687.5,2687.0,3.72157]
[1730302325282,3.72099,2687.5,2687.0,3.72152]
[1730302325679,3.72108,2687.4,2687.0,3.72152]
[1730302325909,3.72009,2688.1,2687.6,4.55278]
[1730302326113,3.72029,2688.0,2687.6,4.55278]
[1730302326323,3.72044,2687.9,2687.6,0.832]
[1730302326609,3.72097,2687.5,2687.0,4.55353]
[1730302326822,0.14231601,2688.2,2687.2,3.72126]
[1730302326823,3.72065,2687.7,2687.2,3.72126]
[1730302326972,3.72052,2687.8,2687.3,4.45583132]
[1730302327171,3.72052,2687.8,2687.3,4.45579132]
[1730302327416,3.72052,2687.8,2687.4,3.72106]
[1730302327717,3.72034,2688.0,2687.5,0.7854]
[1730302327869,3.72043,2687.9,2687.5,0.7854]
[1730302328307,3.72054,2687.8,2687.5,0.7854]
[1730302328609,0.13231601,2688.2,2687.6,0.7633]
[1730302328771,3.85228601,2688.2,2687.7,3.72058]
[1730302328978,3.85228601,2688.2,2687.8,0.448388]
[1730302329305,3.72019,2688.1,2687.6,0.7633]
[1730302329505,3.72019,2688.1,2687.4,3.721]
[1730302329506,3.72044,2687.9,2687.4,3.721]
[1730302329707,3.72044,2687.9,2687.5,3.72088]
[1730302330009,3.72017,2688.1,2687.5,0.89398713]
[1730302330223,3.72017,2688.1,2687.6,3.72073]
[1730302330513,0.13231601,2688.2,2687.9,3.7203]
[1730302330692,3.85233601,2688.2,2687.8,3.7205]
[1730302331017,0.13231601,2688.2,2687.9,0.744105]
[1730302331380,0.13231601,2688.2,2687.9,4.464455]
[1730302331698,0.13231601,2688.2,2687.1,4.01]
[1730302331699,3.72079,2687.6,2687.3,0.73469132]
[1730302331909,3.72079,2687.6,2687.1,3.72142]
[1730302332282,7.44115,2687.8,2687.1,3.72139]
[1730302332483,3.72093,2687.5,2687.2,0.448469]
[1730302332743,3.72093,2687.5,2687.0,0.7633]
[1730302332911,3.72093,2687.5,2687.0,4.48483]
[1730302333219,3.72073,2687.7,2687.0,0.7633]
[1730302333402,3.72064,2687.8,2687.2,3.72133]
[1730302333592,3.7209,2687.6,2687.0,0.7633]
[1730302333792,3.7209,2687.6,2687.1,0.448494]
[1730302334009,3.7209,2687.6,2687.1,4.169964]
[1730302334208,3.72066,2687.7,2687.1,4.169964]
[1730302334413,3.72108,2687.4,2687.1,0.448494]
[1730302334582,3.72094,2687.5,2687.0,0.7633]
[1730302334782,3.72023,2688.0,2687.0,0.7633]
[1730302335019,3.72115,2687.4,2687.0,0.7633]
[1730302335240,4.53404,2687.4,2686.9,3.72174]
[1730302335389,3.72114,2687.4,2687.0,0.672174]
[1730302335591,3.72114,2687.4,2687.0,4.393784]
[1730302335804,7.44228,2687.4,2687.0,0.672174]
[1730302336126,3.72114,2687.4,2687.0,0.672174]
[1730302336285,3.72093,2687.5,2687.0,4.393764]
[1730302336504,3.7207,2687.7,2687.2,0.7959]
[1730302337320,3.72052,2687.8,2687.2,0.7959]
[1730302337823,3.72069,2687.7,2687.2,0.7959]
[1730302337997,7.44146,2687.7,2687.2,0.7959]
[1730302338204,3.72069,2687.7,2687.2,1.31360006]
[1730302339223,3.72019,2688.1,2687.3,0.55]
[1730302339589,0.94521601,2688.2,2687.3,0.55]
[1730302339590,3.72046,2687.9,2687.3,0.55]
[1730302339785,3.72054,2687.8,2687.2,1.31360006]
[1730302339988,7.44114,2687.8,2687.3,4.20945573]
[1730302340311,3.72054,2687.8,2687.3,4.20945573]
[1730302340906,3.72072,2687.7,2687.3,4.20945573]
[1730302341227,3.72051,2687.8,2687.3,3.72111]
[1730302341432,3.72051,2687.8,2687.2,0.7959]
[1730302342000,3.72047,2687.9,2687.3,3.7211]
[1730302342203,3.72055,2687.8,2687.5,0.7876]
[1730302342730,3.72053,2687.8,2687.5,0.7876]
[1730302344051,3.72025,2688.0,2687.5,0.7876]
[1730302344214,3.72048,2687.9,2687.5,1.275677]
[1730302344422,3.72051,2687.9,2687.5,1.275677]
[1730302345023,3.72044,2687.9,2687.5,1.275677]
[1730302345436,7.44091,2687.9,2687.5,1.275677]
[1730302345945,3.72044,2687.9,2687.5,1.275677]
[1730302346249,3.72055,2687.8,2687.5,1.275677]
[1730302346451,3.72055,2687.8,2687.6,0.4996617]
[1730302347150,0.13231601,2688.2,2687.6,0.4996617]
[1730302347359,0.13231601,2688.2,2687.7,4.48999]
[1730302347511,3.72051,2687.8,2687.4,0.7694]
[1730302347860,3.72039,2687.9,2687.4,4.49044]
[1730302348010,3.72039,2687.9,2687.5,0.44905]
[1730302348948,3.72025,2688.0,2687.5,4.16995]
[1730302350342,3.72019,2688.1,2687.6,3.72078]
[1730302350549,3.72019,2688.1,2687.6,8.307507]
[1730302350720,3.72019,2688.1,2687.6,4.586727]
[1730302351216,3.72018,2688.1,2687.6,4.586727]
[1730302351845,3.72018,2688.1,2687.6,8.307437]
[1730302352130,3.72026,2688.0,2687.6,4.586727]
[1730302352310,0.13231601,2688.2,2687.7,4.1793027]
[1730302352537,0.13231601,2688.2,2687.8,7.29006723]
[1730302352754,0.13231601,2688.2,2687.8,3.72051]
[1730302352949,3.72046,2687.9,2687.7,0.4586727]
[1730302353160,3.72025,2688.0,2687.5,3.72084]
[1730302353447,3.72039,2687.9,2687.4,4.49036]
[1730302353656,3.72024,2688.0,2687.5,4.449036]
[1730302353811,3.72045,2687.9,2687.5,4.449036]
[1730302354243,3.72051,2687.8,2687.5,4.449036]
[1730302354444,0.7861,2688.1,2687.1,0.7569]
[1730302354617,3.72117,2687.4,2687.2,4.0]
[1730302354820,4.48837,2687.6,2687.2,4.0]
[1730302355025,8.20924,2687.6,2687.2,4.847846]
[1730302355412,4.48837,2687.6,2687.2,0.847846]
[1730302355614,0.7675,2687.9,2687.2,4.41740323]
[1730302355820,3.72035,2688.0,2687.5,0.7569]
[1730302356214,3.85236601,2688.2,2687.5,0.7569]
[1730302356446,0.13231601,2688.2,2687.7,3.72058]
[1730302356754,3.85228601,2688.2,2687.7,3.72061]
[1730302357350,3.85228601,2688.2,2687.8,3.72048]
[1730302357558,3.85228601,2688.2,2687.8,4.464589]
[1730302357911,3.72011,2688.1,2687.8,0.744109]
[1730302358155,3.72011,2688.1,2687.5,4.32645723]
[1730302358455,0.13231601,2688.2,2687.3,8.61855327]
[1730302358456,3.72087,2687.6,2687.3,0.52487327]
[1730302358752,3.72065,2687.7,2687.2,0.7625]
[1730302359471,3.72032,2688.0,2687.2,0.7625]
[1730302359671,3.72035,2688.0,2687.2,0.83691766]
[1730302359833,3.72044,2687.9,2687.3,0.44064749]
[1730302360171,3.72053,2687.8,2687.3,0.44064749]
[1730302360679,3.72038,2687.9,2687.3,0.44064749]
[1730302361535,3.72035,2688.0,2687.5,3.72083]
[1730302361877,3.72035,2688.0,2687.6,0.372083]
[1730302362034,3.72041,2687.9,2687.6,0.372083]
[1730302363137,3.72019,2688.1,2687.7,4.47424]
[1730302363337,0.13231601,2688.2,2688.0,3.72023]
[1730302363565,0.13231601,2688.2,2688.1,0.7536]
[1730302363769,0.13231601,2688.2,2688.1,1.200976]
[1730302364184,0.13231601,2688.2,2688.1,4.921066]
[1730302364670,0.13231601,2688.2,2688.1,16.361166]
[1730302365052,0.13231601,2688.2,2688.1,19.361166]
[1730302365849,0.13231601,2688.2,2688.1,15.641076]
[1730302366472,0.13231601,2688.2,2688.1,19.361166]
[1730302367378,0.13231601,2688.2,2688.1,19.911166]
[1730302367583,0.13231601,2688.2,2688.1,19.361166]
[1730302368450,0.13231601,2688.2,2688.1,12.641076]
[1730302369264,0.13231601,2688.2,2688.1,8.641076]
[1730302370366,0.13231601,2688.2,2688.1,12.361166]
[1730302370569,0.13231601,2688.2,2688.1,8.641076]
[1730302371078,0.13231601,2688.2,2688.1,15.93072323]
[1730302371375,0.13231601,2688.2,2688.1,19.48072323]
[1730302371743,0.13231601,2688.2,2688.1,23.48072323]
[1730302372750,0.13231601,2688.2,2688.1,19.48072323]
[1730302374181,0.13231601,2688.2,2688.1,23.48072323]
[1730302374762,0.13231601,2688.2,2688.1,23.85322323]
[1730302375488,0.5,2689.6,2689.5,0.81]
[1730302375845,0.5,2689.6,2689.5,4.52816]
[1730302376545,0.5,2689.6,2689.3,7.28787723]
[1730302376751,0.5,2689.6,2689.5,7.4363]
[1730302377387,4.21802,2689.6,2689.5,7.4363]
[1730302378092,0.5,2689.6,2689.5,11.93826]
[1730302378256,0.5,2689.6,2689.5,7.4363]
[1730302378783,4.21802,2689.6,2689.5,7.4363]
[1730302380260,0.5,2689.6,2689.5,7.4363]
[1730302380789,4.21802,2689.6,2689.5,7.4363]
[1730302381893,4.97372,2689.6,2689.5,7.4363]
[1730302382099,3.71895,2689.0,2688.5,4.32055723]
[1730302382259,3.7183,2689.4,2688.2,2.38532232]
[1730302382260,3.71921,2688.8,2688.7,4.0]
[1730302382660,3.71873,2689.1,2688.7,4.0]
[1730302382881,4.5061,2689.2,2688.7,3.71926]
[1730302383094,4.5061,2689.2,2688.8,0.743859]
[1730302383476,0.7875,2689.2,2688.8,4.462969]
[1730302383661,0.7875,2689.2,2688.8,0.743859]
[1730302384062,3.71832,2689.4,2688.8,4.31341623]
[1730302384504,3.71855,2689.3,2688.8,4.31341623]
[1730302384794,0.7877,2689.5,2688.4,4.49525]
[1730302384996,4.48596,2688.9,2688.5,4.0]
[1730302385763,0.7669,2688.9,2688.5,11.28906723]
[1730302385994,3.71885,2689.0,2688.6,1.57842372]
[1730302386379,0.5,2689.6,2688.8,3.56955723]
[1730302386582,3.71829,2689.5,2688.9,3.71887]
[1730302386785,0.5,2689.6,2688.9,3.71887]
[1730302386965,4.21805,2689.6,2689.1,3.71864]
[1730302387160,3.71837,2689.4,2689.0,0.81151272]
[1730302387462,4.21812,2689.6,2689.1,3.7187]
[1730302387669,0.5,2689.6,2689.3,3.71837]
[1730302388497,0.5,2689.6,2689.3,4.54232]
[1730302388672,0.5,2689.6,2689.3,0.824]
[1730302389069,0.5,2689.6,2689.3,4.54237]
[1730302389267,0.5,2689.6,2689.4,0.49953913]
[1730302389888,4.21803,2689.6,2688.9,0.7551]
[1730302390196,3.71865,2689.2,2688.7,3.71917]
[1730302390406,3.7184,2689.4,2688.6,3.56955723]
[1730302390559,3.71844,2689.3,2688.8,3.71904]
[1730302390765,3.71843,2689.3,2688.8,3.71904]
[1730302391006,3.71885,2689.0,2688.9,0.81515057]
[1730302391171,3.71885,2689.0,2688.7,4.43246572]
[1730302391378,3.71859,2689.2,2688.7,0.43246572]
[1730302391379,7.43729,2689.2,2688.7,0.43246572]
[1730302391564,3.71873,2689.1,2688.7,0.43246572]
[1730302391769,3.71873,2689.1,2688.8,7.4381]
[1730302391971,3.71859,2689.2,2688.8,9.3259783]
[1730302392201,3.71838,2689.4,2688.8,9.3259783]
[1730302392403,3.71845,2689.3,2688.8,9.3259783]
[1730302392616,0.7796,2689.4,2688.8,7.4381]
[1730302392817,4.49859,2688.9,2688.8,7.4381]
[1730302395374,3.71859,2689.2,2688.9,0.8005]
[1730302395573,3.71873,2689.1,2688.9,1.62436]
[1730302395882,3.71873,2689.1,2689.0,7.4377]
[1730302396812,3.71873,2689.1,2688.1,3.0]
[1730302396813,3.0,2689.0,2688.0,0.7947]
[1730302397111,3.72016,2688.1,2687.7,0.7947]
[1730302397295,3.72016,2688.1,2687.7,1.25182176]
[1730302397797,3.71988,2688.3,2687.7,8.97241176]
[1730302397995,4.49349,2688.4,2687.9,3.7203]
[1730302398177,3.01,2689.0,2687.9,7.28984723]
[1730302398178,3.71942,2688.6,2687.9,7.28984723]
[1730302398374,3.71977,2688.4,2687.9,7.28984723]
[1730302398709,3.71923,2688.8,2688.2,3.71987]
[1730302398871,4.50359,2688.9,2688.1,0.8307]
[1730302398872,3.71933,2688.7,2688.1,0.8307]
[1730302399207,3.71949,2688.6,2688.1,0.8307]
[1730302399412,3.71961,2688.5,2688.1,0.8307]
[1730302399600,3.71961,2688.5,2688.2,0.455085]
[1730302400399,3.71949,2688.6,2688.2,0.455085]
[1730302400595,3.71919,2688.8,2688.2,4.174975]
[1730302400805,0.7845,2688.9,2688.4,3.71966]
[1730302401005,3.71895,2689.0,2688.4,3.71966]
[1730302401006,7.43793,2689.0,2688.5,0.371966]
[1730302401210,3.71895,2689.0,2688.5,4.091496]
[1730302401508,4.52605,2689.2,2688.6,4.49389]
[1730302401811,3.71872,2689.1,2688.7,4.2058256]
[1730302402407,3.71867,2689.2,2688.7,0.4865856]
[1730302402818,7.43737,2689.2,2688.7,4.2058356]
[1730302402976,7.43737,2689.2,2688.8,0.86997256]
[1730302403179,3.71867,2689.2,2688.8,0.86997256]
[1730302403677,0.5,2689.6,2688.9,3.71891]
[1730302403678,3.7183,2689.4,2688.9,3.71891]
[1730302404104,3.71853,2689.3,2688.8,8.30809256]
[1730302404309,3.71853,2689.3,2688.9,4.54978926]
[1730302404510,4.21811,2689.6,2689.1,3.71868]
[1730302404711,4.21811,2689.6,2689.0,3.71885]
[1730302404712,3.71831,2689.4,2688.9,4.54971926]
[1730302405014,3.71859,2689.2,2688.9,0.83080926]
[1730302405221,7.43727,2689.2,2688.7,3.7192]
[1730302405419,7.43727,2689.2,2688.6,4.49391]
[1730302405420,3.71859,2689.2,2689.0,7.4376]
[1730302405596,0.5,2689.6,2689.1,3.71866]
[1730302405923,4.21803,2689.6,2689.2,5.97622]
[1730302406089,4.21803,2689.6,2689.2,9.69491]
[1730302406421,3.71843,2689.3,2689.2,7.4372]
[1730302408783,4.54053,2689.3,2689.2,7.4372]
[1730302408984,7.54053,2689.3,2689.2,7.4372]
[1730302409211,3.71928,2688.7,2688.3,0.7863]
[1730302409518,3.71906,2688.9,2688.4,3.71956]
[1730302409716,3.71939,2688.7,2688.5,0.450586]
[1730302409918,3.71896,2689.0,2688.3,4.50611]
[1730302410083,3.7194,2688.7,2688.3,0.7863]
[1730302410280,3.71914,2688.8,2688.3,0.7863]
[1730302410490,3.71914,2688.8,2688.3,1.236916]
[1730302410695,3.71927,2688.7,2688.3,1.236916]
[1730302411116,3.71967,2688.5,2688.0,4.48864]
[1730302411288,3.71942,2688.6,2688.1,3.72002]
[1730302411694,3.71993,2688.3,2688.0,0.7685]
[1730302411926,3.71993,2688.3,2688.0,1.217364]
[1730302412124,3.71993,2688.3,2688.0,0.448864]
[1730302412428,7.43986,2688.3,2687.8,4.50094]
[1730302412589,3.71993,2688.3,2687.8,4.50094]
[1730302412923,3.71996,2688.2,2687.8,0.7805]
[1730302413417,3.71996,2688.2,2687.9,7.4405]
[1730302413607,3.71977,2688.4,2688.0,0.8221]
[1730302413608,3.71982,2688.3,2688.0,0.8221]
[1730302414016,3.71982,2688.3,2688.1,7.4402]
[1730302414828,7.43955,2688.4,2688.1,7.4402]
[1730302414996,7.43955,2688.4,2688.1,8.26643]
[1730302415197,3.71915,2688.8,2688.1,12.41338656]
[1730302415795,7.4379,2689.0,2688.2,0.8251]
[1730302416132,3.719,2688.9,2688.3,7.4396]
[1730302416431,3.71892,2689.0,2688.4,0.83390913]
[1730302416654,3.71935,2688.7,2688.5,7.4391]
[1730302417533,3.7194,2688.6,2688.5,7.4391]
[1730302418711,4.55198,2688.7,2687.8,3.72051]
[1730302418907,3.71989,2688.3,2687.8,3.72051]
[1730302419131,7.43983,2688.3,2687.8,3.72051]
[1730302419415,3.71999,2688.2,2687.9,0.372051]
[1730302419622,3.7203,2688.0,2687.6,0.87350756]
[1730302419809,4.55198,2688.7,2687.6,0.87350756]
[1730302419810,3.7201,2688.1,2687.6,4.59422756]
[1730302420131,3.72002,2688.2,2687.7,4.55207376]
[1730302420352,3.71989,2688.3,2687.8,3.72042]
[1730302420640,3.72018,2688.1,2687.7,0.83151376]
[1730302421234,3.72009,2688.2,2687.7,0.83151376]
[1730302421436,3.72009,2688.2,2687.8,0.54257713]
[1730302421673,3.72016,2688.1,2687.8,0.54257713]
[1730302421951,3.71963,2688.5,2687.9,0.7877]
[1730302422638,3.7191,2688.9,2687.9,3.86209965]
[1730302422823,3.71927,2688.7,2688.0,0.85516333]
[1730302423029,3.71927,2688.7,2688.1,3.0]
[1730302423449,3.71927,2688.7,2688.2,7.4399]
[1730302424359,3.71913,2688.8,2688.2,7.4399]
[1730302424513,3.71913,2688.8,2688.3,1.04399]
[1730302424714,3.71931,2688.7,2688.3,1.04399]
[1730302424946,3.71905,2688.9,2688.4,8.2006]
[1730302425363,3.71905,2688.9,2688.4,11.92026]
[1730302425513,3.71905,2688.9,2688.5,1.668397]
[1730302425718,3.71905,2688.9,2688.6,7.4388]
[1730302426423,3.71926,2688.7,2688.6,7.4388]
[1730302429142,4.47586,2689.0,2688.6,7.4388]
[1730302429440,3.719,2688.9,2688.6,7.4388]
[1730302429646,3.719,2688.9,2688.7,0.8211]
[1730302429863,3.71913,2688.8,2688.7,0.8211]
[1730302430046,3.719,2688.9,2688.6,7.4388]
[1730302430563,4.47586,2689.0,2688.6,7.4388]
[1730302431072,3.71902,2688.9,2688.6,7.4388]
[1730302431374,3.71926,2688.7,2688.6,7.4388]
[1730302432476,3.71923,2688.8,2688.6,7.4388]
[1730302432676,3.71926,2688.7,2688.6,8.18268]
[1730302433175,3.71899,2688.9,2688.6,8.18268]
[1730302433335,4.47117,2689.3,2688.7,4.54909]
[1730302433531,3.71831,2689.4,2689.0,3.71884]
[1730302433879,3.71816,2689.5,2689.0,3.71875]
[1730302434038,3.71816,2689.5,2689.1,7.4374]
[1730302434654,3.71842,2689.4,2689.1,7.4374]
[1730302435277,3.71842,2689.4,2689.1,8.553025]
[1730302435753,3.71818,2689.5,2689.1,8.553025]
[1730302436260,4.2181,2689.6,2689.2,0.7709]
[1730302436467,0.5,2689.6,2689.2,0.7709]
[1730302436799,0.5,2689.6,2689.1,8.553025]
[1730302436800,3.71857,2689.2,2689.1,7.4374]
[1730302439987,3.71845,2689.3,2689.1,7.4374]
[1730302440893,0.829,2689.5,2689.1,7.4374]
[1730302441101,3.71857,2689.2,2689.1,7.4374]
[1730302441560,3.71917,2688.8,2688.3,4.90656]
[1730302441763,3.7183,2689.4,2688.6,3.71934]
[1730302441993,3.71878,2689.1,2688.4,4.05395465]
[1730302442184,3.71893,2689.0,2688.5,3.71952]
[1730302442378,3.71893,2689.0,2688.6,1.14930147]
[1730302445360,0.5,2689.6,2689.1,0.8025]
[1730302445560,4.21803,2689.6,2689.1,0.8025]
[1730302445759,4.21803,2689.6,2689.1,1.27632987]
[1730302446569,0.5,2689.6,2689.1,1.27632987]
[1730302446777,0.5,2689.6,2688.9,0.779]
[1730302446778,3.71854,2689.3,2688.9,0.779]
[1730302447304,3.7186,2689.2,2688.9,0.779]
[1730302447603,3.71877,2689.1,2688.9,0.779]
[1730302447970,7.43762,2689.1,2688.7,0.8285]
[1730302448181,3.71899,2688.9,2688.8,0.43917987]
[1730302448394,3.71899,2688.9,2688.4,4.53271]
[1730302448395,3.71901,2688.9,2688.4,4.53271]
[1730302448809,3.71901,2688.9,2688.5,3.71952]
[1730302449105,3.71901,2688.9,2688.6,0.453262]
[1730302449315,3.71914,2688.8,2688.6,0.453262]
[1730302449494,3.71887,2689.0,2688.6,0.453262]
[1730302449802,3.71901,2688.9,2688.6,0.453262]
[1730302450172,7.4381,2688.9,2688.6,0.453262]
[1730302450372,3.71901,2688.9,2688.6,0.453262]
[1730302450668,3.71883,2689.1,2688.7,0.4172772]
[1730302451105,3.71888,2689.0,2688.7,0.4172772]
[1730302451309,4.46958,2689.5,2688.8,4.49373]
[1730302451481,4.21811,2689.6,2688.9,1.21935358]
[1730302451806,3.71822,2689.5,2689.0,3.71876]
[1730302451968,3.71822,2689.5,2688.9,3.71897]
[1730302452164,3.71845,2689.3,2688.9,3.71897]
[1730302452504,3.71822,2689.5,2689.0,3.71877]
[1730302453099,3.71845,2689.3,2688.9,3.71886]
[1730302453307,3.71845,2689.3,2689.0,0.449356]
[1730302453811,3.71822,2689.5,2689.1,3.71869]
[1730302454395,3.71832,2689.4,2689.0,4.168176]
[1730302454573,3.71818,2689.5,2689.0,4.168176]
[1730302454908,3.71818,2689.5,2689.1,0.4168176]
[1730302455206,7.43645,2689.5,2689.1,0.4168176]
[1730302455405,3.71818,2689.5,2689.1,0.4168176]
[1730302455706,3.7183,2689.4,2689.1,0.4168176]
[1730302457298,3.71818,2689.5,2689.1,0.4168176]
[1730302457488,3.71818,2689.5,2689.0,3.71872]
[1730302457489,3.71818,2689.5,2689.2,0.41355376]
[1730302458211,7.43643,2689.5,2689.2,0.41355376]
[1730302458413,7.43646,2689.5,2689.2,0.41355376]
[1730302458620,3.71818,2689.5,2689.0,3.71883]
[1730302458785,0.5,2689.6,2689.0,3.71883]
[1730302458992,3.71822,2689.5,2688.8,0.7747]
[1730302459233,3.71822,2689.5,2689.1,3.71865]
[1730302459520,7.43651,2689.5,2689.2,0.371865]
[1730302459707,3.71822,2689.5,2688.9,11.43777]
[1730302459891,0.5,2689.6,2689.0,4.49365]
[1730302460213,4.21802,2689.6,2689.1,3.71871]
[1730302460653,3.71835,2689.4,2689.0,0.7749]
[1730302460955,3.71816,2689.5,2689.0,4.943043]
[1730302461260,3.71832,2689.4,2689.0,4.49366]
[1730302461417,3.71832,2689.4,2689.0,5.314937]
[1730302462249,3.7185,2689.3,2689.0,1.596177]
[1730302462460,4.2181,2689.6,2689.0,0.821277]
[1730302462759,3.71836,2689.4,2689.0,0.821277]
[1730302462919,3.71836,2689.4,2689.1,0.4540207]
[1730302463655,3.71836,2689.4,2689.0,0.821277]
[1730302464017,3.71836,2689.4,2689.0,4.540117]
[1730302464830,3.71821,2689.5,2689.1,3.7187]
[1730302465146,0.5,2689.6,2689.0,4.540117]
[1730302465147,0.5,2689.6,2689.3,3.0]
[1730302465359,0.5,2689.6,2689.5,11.04305865]
[1730302465768,0.5,2689.6,2689.5,11.41555865]
[1730302466190,0.5,2689.6,2689.5,7.47976]
[1730302466480,0.5,2689.6,2689.5,0.7616]
[1730302466790,0.5,2689.6,2689.5,9.68407786]
[1730302468106,0.5,2689.6,2689.5,12.68407786]
[1730302469685,0.5,2689.6,2689.5,13.05657786]
[1730302469887,0.5,2689.6,2689.5,12.68407786]
[1730302473703,0.5,2689.6,2689.5,16.24737651]
[1730302476510,0.49915214,2689.6,2689.5,19.81067516]
[1730302476669,0.49915214,2689.6,2689.5,16.24737651]
[1730302478094,0.49915214,2689.6,2689.5,12.68407786]
[1730302478305,0.49915214,2689.6,2689.5,13.24737651]
[1730302479365,0.49915214,2689.6,2689.5,16.24737651]
[1730302479835,0.49915214,2689.6,2689.5,16.61987651]
[1730302480573,0.49915214,2689.6,2689.5,16.24737651]
[1730302480912,0.49915214,2689.6,2689.5,22.92197651]
[1730302481714,0.49915214,2689.6,2689.5,16.20381651]
[1730302481911,4.21717214,2689.6,2689.5,11.4362]
[1730302482379,4.71717214,2689.6,2689.5,7.4362]
[1730302483164,0.99915214,2689.6,2689.5,7.4362]
[1730302483611,0.99915214,2689.6,2689.5,10.99949865]
[1730302486072,0.99915214,2689.6,2689.5,12.84311051]
[1730302486319,0.99915214,2689.6,2689.5,16.56127051]
[1730302486615,0.99915214,2689.6,2689.5,12.84311051]
[1730302487727,0.99915214,2689.6,2689.5,16.56127051]
[1730302488076,0.99915214,2689.6,2689.5,12.84311051]
[1730302488927,0.99915214,2689.6,2689.5,7.4362]
[1730302489430,0.99915214,2689.6,2689.5,11.15436]
[1730302489720,0.99915214,2689.6,2689.5,14.71765865]
[1730302489885,0.99915214,2689.6,2689.5,15.51945865]
[1730302490087,0.99915214,2689.6,2689.5,14.71765865]
[1730302490287,0.99915214,2689.6,2689.5,16.64396252]
[1730302490681,0.99915214,2689.6,2689.5,9.36250387]
[1730302490816,0.99915214,2689.6,2689.5,7.4362]
[1730302494022,0.99915214,2689.6,2689.5,15.48925865]
[1730302494332,0.99915214,2689.6,2689.5,14.71765865]
[1730302495650,0.99915214,2689.6,2689.5,18.71765865]
[1730302495940,0.99915214,2689.6,2689.5,21.03841252]
[1730302498953,0.99915214,2689.6,2689.5,17.03841252]
[1730302499817,0.99915214,2689.6,2689.5,17.41091252]
[1730302500152,0.99915214,2689.6,2689.5,17.03841252]
[1730302500311,5.48507214,2689.6,2689.5,7.4362]
[1730302501157,3.71893,2689.0,2688.7,0.4172772]
[1730302501369,4.48696,2688.9,2688.7,0.4172772]
[1730302501539,4.48696,2688.9,2688.5,3.71953]
[1730302501740,0.7679,2688.9,2687.6,1.29880655]
[1730302501928,0.8241,2688.3,2687.7,3.72063]
[1730302502127,4.54399,2688.3,2687.8,7.28369865]
[1730302502372,0.8241,2688.3,2688.0,4.0]
[1730302502661,0.7826,2688.6,2688.1,3.56329865]
[1730302502868,0.8018,2688.9,2688.5,7.28283865]
[1730302503023,0.8018,2688.9,2688.7,3.71919]
[1730302503229,3.71921,2688.8,2688.6,7.4388]
[1730302503633,0.8018,2688.9,2688.6,7.4388]
[1730302503827,0.8018,2688.9,2688.7,1.10020987]